bitfinex/quotes_ETHUSD_20220201
["timestamp","ask_amount","ask_price","bid_price","bid_amount"]
[1643718622236,0.3983334,2782.3,2781.7,0.25]
[1643718622440,0.86287473,2781.7,2781.5,0.7459598]
[1643718622636,0.86287473,2781.7,2781.5,1.7459598]
[1643718622937,0.86287473,2781.7,2781.5,0.7459598]
[1643718623138,0.371632,2781.8,2781.5,1.7459598]
[1643718623339,21.18,2782.6,2781.5,0.7459598]
[1643718623539,21.18,2782.6,2781.5,1.7459598]
[1643718623898,21.18,2782.6,2781.5,0.7459598]
[1643718624094,21.18,2782.6,2781.5,1.9446798]
[1643718624299,21.18,2782.6,2781.5,2.9446798]
[1643718624496,1.18265408,2781.8,2781.5,2.49872]
[1643718624700,1.18265408,2781.8,2781.5,0.6]
[1643718624897,0.73313038,2781.8,2781.5,0.6]
[1643718625299,0.73313038,2781.8,2781.5,1.49875]
[1643718625597,0.73313038,2781.8,2781.5,0.89875]
[1643718625798,0.91296038,2781.8,2781.2,1.80736]
[1643718625997,0.33484192,2781.4,2781.2,1.80736]
[1643718626202,0.91296038,2781.8,2781.2,1.79736]
[1643718627197,0.3528846,2781.4,2781.2,1.79736]
[1643718627623,0.91296038,2781.8,2781.2,1.79736]
[1643718627822,1.2209,2781.9,2781.4,0.89876]
[1643718628626,1.2209,2781.9,2781.8,0.32800774]
[1643718628831,3.4601,2782.1,2781.8,0.32800774]
[1643718629028,4.57475073,2782.2,2781.8,0.32800774]
[1643718629832,4.57475073,2782.2,2781.8,0.62800774]
[1643718630030,0.43445073,2782.2,2781.8,0.62800774]
[1643718630233,0.8694448,2782.3,2781.8,0.62800774]
[1643718630431,1.51833566,2782.2,2781.8,0.62800774]
[1643718630634,12.6188,2782.7,2781.8,6.44232152]
[1643718630833,1.51820427,2782.6,2781.9,1.0]
[1643718631032,1.51820427,2782.6,2782.0,0.1797]
[1643718631234,12.6188,2782.7,2782.4,0.36592636]
[1643718631504,5.5586,2782.7,2782.5,0.1796]
[1643718631701,5.5586,2782.7,2782.5,0.89838]
[1643718631702,1.2305,2782.7,2782.5,0.89838]
[1643718631902,4.1892,2782.8,2782.6,0.1796]
[1643718632104,4.1892,2782.8,2782.6,1.07797]
[1643718632505,0.13819997,2783.0,2782.6,1.97633]
[1643718632705,0.53220696,2783.0,2782.6,2.41352902]
[1643718633306,0.53220696,2783.0,2782.6,1.97633]
[1643718634311,1.51792249,2782.9,2782.7,0.34870929]
[1643718634510,2.23226855,2783.2,2782.8,0.1796]
[1643718634511,1.2473,2783.2,2782.8,0.1796]
[1643718634710,1.51782081,2783.1,2782.8,0.1796]
[1643718635125,1.2473,2783.2,2782.8,0.1796]
[1643718636429,1.51782655,2783.1,2782.8,0.1796]
[1643718636630,1.2473,2783.2,2782.8,0.1796]
[1643718636631,1.51790043,2783.0,2782.8,0.1796]
[1643718636831,1.2473,2783.2,2782.6,0.1796]
[1643718637030,1.51793193,2783.1,2782.6,0.1796]
[1643718637231,1.51793193,2783.1,2782.3,0.1796]
[1643718637632,0.35246859,2782.8,2782.4,0.33128926]
[1643718637832,0.35246859,2782.8,2782.5,0.1796]
[1643718638435,0.35246859,2782.8,2782.3,0.89843]
[1643718638436,0.35246859,2782.8,2782.4,0.1796]
[1643718641490,1.51801801,2782.7,2782.4,0.1796]
[1643718641693,22.69801801,2782.7,2782.1,0.1796]
[1643718641892,0.17983,2782.5,2782.0,0.1797]
[1643718642089,1.51801801,2782.4,2782.0,0.1797]
[1643718642490,0.80765373,2782.2,2781.6,0.1897]
[1643718642932,0.80765373,2782.2,2781.6,0.1797]
[1643718643133,1.92970963,2782.1,2781.6,0.1797]
[1643718643336,0.35657862,2781.8,2781.6,0.1797]
[1643718643532,0.80765373,2782.2,2781.6,0.1797]
[1643718644533,0.44864577,2782.0,2781.6,0.1797]
[1643718644936,0.44772421,2782.0,2781.6,0.1797]
[1643718645136,0.80765373,2782.2,2781.6,0.1797]
[1643718645340,1.1386,2782.3,2781.7,0.89866]
[1643718645539,1.1386,2782.3,2781.7,2.69593]
[1643718646140,1.1386,2782.3,2781.8,0.89863]
[1643718646379,1.1386,2782.3,2781.9,1.45180861]
[1643718646578,0.17983,2782.4,2781.9,1.45180861]
[1643718646780,4.1056,2782.7,2782.0,0.3]
[1643718646983,4.1056,2782.7,2782.1,0.1797]
[1643718647582,4.1056,2782.7,2782.2,0.8985]
[1643718647881,4.1056,2782.7,2782.3,1.07802]
[1643718649580,4.1056,2782.7,2782.5,0.89842]
[1643718649782,0.31670432,2783.0,2782.6,0.1796]
[1643718649984,1.51798718,2782.9,2782.6,0.1796]
[1643718650832,1.51798718,2782.9,2782.5,0.1796]
[1643718651433,1.51798718,2782.9,2782.4,0.1796]
[1643718651735,1.69781718,2782.9,2782.4,0.1796]
[1643718651936,1.51798718,2782.8,2782.2,0.1796]
[1643718652134,1.69781718,2782.9,2782.2,0.1796]
[1643718652335,0.43894876,2782.5,2782.2,0.1796]
[1643718652535,1.51798718,2782.4,2782.2,0.1796]
[1643718654084,1.51798718,2782.4,2781.9,0.1797]
[1643718654283,22.69798718,2782.4,2781.9,0.1797]
[1643718654488,0.61877876,2782.5,2781.9,0.1797]
[1643718654489,1.51798718,2782.3,2781.9,0.1797]
[1643718654680,1.51798718,2782.2,2781.9,0.1797]
[1643718654884,0.33851498,2782.0,2781.9,0.1797]
[1643718655283,0.33851498,2782.0,2781.4,0.1797]
[1643718655683,0.33851498,2782.0,2781.5,0.8987]
[1643718655884,0.94227234,2782.2,2781.6,0.1797]
[1643718656090,1.1614,2782.4,2781.6,0.1797]
[1643718656284,1.51824394,2782.3,2781.6,0.1797]
[1643718656484,1.51824394,2782.3,2781.6,1.97687]
[1643718656684,1.51824394,2782.3,2781.6,2.87552]
[1643718656885,1.51824394,2782.3,2781.6,3.87552]
[1643718657086,1.51824394,2782.3,2782.1,0.89856]
[1643718657305,4.1146,2782.7,2782.1,0.89856]
[1643718657306,4.1146,2782.7,2782.2,0.1797]
[1643718657627,1.51805774,2782.6,2782.2,0.1797]
[1643718658233,1.91446147,2782.6,2782.2,0.1797]
[1643718658436,0.39640373,2782.6,2782.1,0.1797]
[1643718659034,0.39640373,2782.6,2782.2,0.89847]
[1643718659236,0.39640373,2782.6,2782.3,0.1797]
[1643718659436,4.1146,2782.7,2782.3,0.1797]
[1643718659636,1.51804675,2782.6,2782.3,0.1797]
[1643718660438,1.51804675,2782.6,2782.5,0.32903732]
[1643718660837,1.51804675,2782.6,2782.3,0.1797]
[1643718661675,0.34355999,2782.7,2782.3,1.07815]
[1643718661874,1.18523884,2783.1,2782.3,1.07815]
[1643718662074,1.51792357,2783.0,2782.4,0.6]
[1643718662276,1.51792357,2782.9,2782.5,0.1796]
[1643718662674,9.1205,2783.2,2782.7,0.38714589]
[1643718662875,1.51788067,2783.1,2782.8,0.1796]
[1643718663079,1.138,2783.7,2782.8,3.24794829]
[1643718663381,8.2571011,2784.0,2782.8,3.24794829]
[1643718663382,1.51767617,2783.6,2782.9,0.518]
[1643718663581,7.44,2784.0,2782.9,0.518]
[1643718663582,7.44,2784.0,2783.0,2.42320574]
[1643718663783,1.51757241,2783.9,2783.1,0.518]
[1643718663982,1.51757241,2783.9,2783.2,0.9878295]
[1643718664179,1.51757241,2783.9,2783.4,1.79604]
[1643718664478,1.51757241,2783.9,2783.5,1.07764]
[1643718664683,6.77862382,2784.4,2783.5,1.07764]
[1643718664684,4.50187382,2784.4,2783.5,1.07764]
[1643718664878,4.50187382,2784.4,2783.6,0.3]
[1643718664879,1.51744341,2784.3,2783.6,0.3]
[1643718665124,1.51744341,2784.3,2783.7,0.1794]
[1643718665528,2.43672707,2784.3,2783.7,0.1794]
[1643718665730,1.46744341,2784.2,2783.7,0.1794]
[1643718665929,1.46744341,2784.2,2783.7,0.58802765]
[1643718666337,4.50187382,2784.4,2783.7,0.1794]
[1643718666534,0.38067382,2784.4,2783.6,0.1794]
[1643718666733,0.38067382,2784.4,2783.6,0.4794]
[1643718666938,0.38067382,2784.4,2783.6,1.07743]
[1643718667335,0.38067382,2784.4,2783.9,0.37446248]
[1643718667537,3.5,2784.3,2783.8,0.32172671]
[1643718667738,9.53130533,2784.5,2783.8,0.32172671]
[1643718667937,8.6463,2784.5,2783.8,0.32172671]
[1643718668977,0.33980856,2784.2,2783.8,0.32172671]
[1643718669173,0.33980856,2784.2,2783.9,0.1795]
[1643718669382,0.73011955,2784.4,2783.9,0.1795]
[1643718670779,0.32999039,2784.0,2783.9,0.1795]
[1643718671380,0.73011955,2784.4,2783.9,0.1795]
[1643718671782,0.73011955,2784.4,2783.6,0.89802]
[1643718672181,0.73011955,2784.4,2783.5,0.3]
[1643718672182,3.15830766,2784.4,2783.5,0.3]
[1643718672387,3.15830766,2784.4,2783.4,3.39604]
[1643718672625,3.15830766,2784.4,2783.6,0.42947946]
[1643718673021,3.15830766,2784.4,2783.6,0.72947946]
[1643718673226,2.42818811,2784.4,2783.6,1.92749946]
[1643718673627,2.42818811,2784.4,2783.6,2.02947946]
[1643718674027,2.42818811,2784.4,2783.6,1.02947946]
[1643718674231,3.11539191,2784.4,2783.6,2.02947946]
[1643718674428,3.4453376,2784.4,2783.7,0.89798]
[1643718674629,2.42818811,2784.4,2783.8,0.3]
[1643718674836,7.20088262,2785.7,2783.8,0.3]
[1643718674837,0.67890113,2785.2,2783.9,5.03184097]
[1643718675037,4.74678424,2785.5,2783.9,5.03184097]
[1643718675038,2.27547924,2785.6,2785.1,0.01242714]
[1643718675234,1.01403552,2785.8,2785.1,1.66312714]
[1643718675235,0.11475128,2785.8,2785.1,1.66312714]
[1643718675435,0.11475128,2785.8,2785.2,3.13352098]
[1643718675634,0.11475128,2785.8,2785.3,0.4371405]
[1643718675831,0.11475128,2785.8,2785.4,2.1333243]
[1643718676230,0.11475128,2785.8,2785.3,1.6345205]
[1643718676484,0.11475128,2785.8,2785.4,1.79475]
[1643718676987,0.11475128,2785.8,2785.4,3.09475]
[1643718677184,0.11475128,2785.8,2785.4,2.09475]
[1643718677987,0.11475128,2785.8,2785.4,0.3]
[1643718678188,0.11475128,2785.8,2785.3,0.4371405]
[1643718678390,0.29458128,2785.8,2785.3,0.4371405]
[1643718679693,0.11475128,2785.8,2785.3,0.4371405]
[1643718679889,0.11475128,2785.8,2785.3,0.7371405]
[1643718682342,0.11475128,2785.8,2785.4,2.6025111]
[1643718683740,0.11475128,2785.8,2785.4,2.9025111]
[1643718684187,0.11475128,2785.8,2785.4,2.0050911]
[1643718684388,0.11475128,2785.8,2785.4,1.19742]
[1643718684588,0.11475128,2785.8,2785.0,1.79493]
[1643718684790,0.92595128,2785.8,2784.8,0.01]
[1643718684996,0.17983,2785.7,2784.8,0.01]
[1643718685187,0.17983,2785.7,2784.5,0.89771]
[1643718685587,0.4471394,2785.4,2785.0,0.3575866]
[1643718685786,0.6269694,2785.4,2785.0,0.3575866]
[1643718685986,0.17983,2785.4,2785.0,0.3575866]
[1643718687628,0.17983,2785.4,2785.2,0.44338397]
[1643718688030,0.17983,2785.3,2784.8,1.79525]
[1643718688226,0.17983,2785.3,2784.8,0.89763]
[1643718688426,3.0,2785.0,2784.8,0.89763]
[1643718688826,3.0,2785.0,2784.6,0.89772]
[1643718689034,3.0,2785.0,2784.2,0.01]
[1643718689228,3.0,2785.0,2784.2,0.31]
[1643718689427,3.0,2785.0,2784.2,0.3]
[1643718690529,3.0,2785.0,2784.6,0.32906182]
[1643718690728,3.0,2785.0,2784.6,0.62906182]
[1643718691581,3.0,2785.0,2784.6,0.32906182]
[1643718691786,3.17983,2785.0,2784.6,0.32906182]
[1643718691983,0.17983,2784.9,2784.3,0.89782]
[1643718692184,0.19239042,2784.9,2783.9,1.80562]
[1643718692786,0.19239042,2784.9,2783.9,1.79562]
[1643718692986,0.19239042,2784.9,2784.6,0.3582488]
[1643718693183,0.01256042,2784.9,2784.6,0.3582488]
[1643718693385,3.0,2785.0,2784.6,0.3582488]
[1643718693589,0.17983,2784.9,2783.9,1.79562]
[1643718693785,0.17983,2784.9,2784.0,0.3]
[1643718693786,0.19245851,2784.9,2784.0,0.3]
[1643718693989,0.19245851,2784.9,2783.9,0.3]
[1643718694185,0.19245851,2784.9,2783.6,3.60031]
[1643718694186,21.18,2784.7,2783.6,0.3]
[1643718694487,21.18,2784.7,2783.1,5.39975314]
[1643718694488,0.353908,2784.3,2783.8,0.33986964]
[1643718694685,0.17983,2784.2,2783.8,0.33986964]
[1643718695837,1.1145239,2784.2,2783.2,0.89812]
[1643718696438,2.3314239,2784.2,2783.2,0.89812]
[1643718696840,1.39673,2784.2,2783.8,0.41217647]
[1643718697039,22.57673,2784.2,2783.2,0.89812]
[1643718697241,23.58733,2784.2,2783.2,0.89812]
[1643718697442,23.58733,2784.2,2783.0,0.90812]
[1643718697839,23.58733,2784.2,2783.0,1.79631]
[1643718698042,0.42916969,2783.7,2783.3,0.4358174]
[1643718698347,0.42916969,2783.7,2783.0,2.25211924]
[1643718698348,0.17983,2783.7,2783.0,2.25211924]
[1643718698539,0.17983,2783.7,2783.0,0.3]
[1643718698739,0.17983,2783.7,2782.8,2.85211924]
[1643718698977,26.122,2784.2,2782.8,2.85211924]
[1643718698978,5.12183,2784.2,2782.8,2.85211924]
[1643718699189,5.12183,2784.2,2782.9,0.1796]
[1643718699383,1.11021765,2784.0,2782.9,0.1796]
[1643718699583,21.35983,2783.9,2782.9,0.1796]
[1643718699987,22.07693,2783.9,2782.9,0.1796]
[1643718700386,0.4090935,2783.1,2782.9,0.1796]
[1643718700588,0.17983,2783.4,2782.9,0.1796]
[1643718701087,21.18,2783.3,2782.9,0.1796]
[1643718701287,0.17983,2783.4,2782.9,0.1796]
[1643718701788,2.50131451,2783.4,2782.9,0.1796]
[1643718701988,0.17983,2783.4,2782.9,0.1796]
[1643718703031,0.17983,2783.4,2783.2,0.3473886]
[1643718703232,0.17983,2783.4,2783.3,0.1796]
[1643718703435,2.46214326,2783.7,2783.3,0.1796]
[1643718703637,1.33553,2783.8,2783.3,0.1796]
[1643718703835,1.1557,2783.8,2783.3,0.1796]
[1643718704437,0.17983,2783.7,2783.3,0.1796]
[1643718704638,1.1557,2783.8,2783.3,0.1796]
[1643718704840,0.17983,2783.7,2783.3,0.1796]
[1643718705039,0.32105509,2783.6,2783.3,0.1796]
[1643718705241,21.50105509,2783.6,2783.3,0.1796]
[1643718705441,21.35983,2783.4,2782.4,1.79661]
[1643718705643,2.67439159,2783.3,2782.4,1.79661]
[1643718706045,0.36136712,2783.0,2782.6,0.34820423]
[1643718706241,1.32383,2783.4,2782.6,0.34820423]
[1643718707177,1.32383,2783.4,2783.2,0.40684404]
[1643718707379,0.17983,2783.4,2783.2,0.40684404]
[1643718707583,0.17983,2783.4,2782.8,0.3]
[1643718707782,0.17983,2783.4,2782.5,0.6]
[1643718707983,0.143833,2783.8,2782.5,1.3]
[1643718708285,0.143833,2783.8,2782.8,1.79633]
[1643718708286,0.17983,2783.6,2782.8,1.79633]
[1643718708482,0.17983,2783.6,2782.5,0.3]
[1643718708483,0.38539002,2783.1,2782.6,0.34942855]
[1643718708688,0.38539002,2783.1,2782.7,0.1796]
[1643718708984,0.17983,2783.2,2782.7,0.1796]
[1643718709582,0.68807638,2782.9,2782.7,0.1796]
[1643718709986,0.68807638,2782.9,2782.4,0.1796]
[1643718710837,0.17983,2783.1,2782.5,0.38814805]
[1643718711238,5.37748335,2783.3,2782.5,0.38814805]
[1643718711437,0.17828335,2783.5,2782.6,4.18996669]
[1643718711637,0.17828335,2783.5,2782.6,4.51246472]
[1643718712236,0.17828335,2783.5,2783.3,0.42519443]
[1643718712436,0.17962,2783.6,2783.4,0.1796]
[1643718712637,0.17962,2783.6,2783.0,0.1796]
[1643718712838,0.17962,2783.6,2782.7,0.1796]
[1643718713038,21.18,2783.4,2782.7,0.1796]
[1643718713240,0.17962,2783.3,2782.7,0.1796]
[1643718713441,0.17962,2783.3,2782.5,0.1796]
[1643718713442,4.41204692,2782.6,2782.5,0.1796]
[1643718713641,4.41204692,2782.6,2782.2,0.31771854]
[1643718713642,1.47144692,2782.6,2782.3,0.1796]
[1643718714276,1.47144692,2782.6,2782.2,0.1796]
[1643718714476,0.7594,2782.6,2782.2,0.1796]
[1643718714677,22.54742,2783.2,2781.9,0.1797]
[1643718714877,22.54742,2783.2,2781.9,1.97679]
[1643718715077,22.54742,2783.2,2782.4,0.39138459]
[1643718715078,0.31873616,2782.9,2782.4,0.39138459]
[1643718715281,0.31873616,2782.9,2782.5,0.1796]
[1643718715282,0.17962,2782.8,2782.5,0.1796]
[1643718715482,0.85470606,2782.8,2782.5,0.1796]
[1643718715882,2.65,2782.6,2782.5,0.1796]
[1643718716083,0.85470606,2782.8,2782.5,0.1796]
[1643718716287,4.97962,2782.6,2782.5,0.1796]
[1643718716490,0.7343,2782.6,2782.5,0.1796]
[1643718716687,0.91392,2782.6,2782.5,0.1796]
[1643718717488,0.91392,2782.6,2782.4,0.1796]
[1643718718135,0.17962,2782.5,2781.9,0.1796]
[1643718718336,0.17962,2782.5,2781.6,0.1797]
[1643718718734,0.17962,2782.5,2781.5,1.79738]
[1643718718940,1.2262,2782.6,2781.6,3.33047924]
[1643718719139,3.9412,2782.8,2781.7,0.518]
[1643718719335,0.17962,2783.1,2781.7,0.518]
[1643718719336,12.76172,2783.7,2781.9,1.80934603]
[1643718719537,10.4739,2783.7,2782.7,0.01256799]
[1643718719745,10.4739,2783.7,2782.8,0.1796]
[1643718719746,10.65352,2783.7,2782.8,0.1796]
[1643718719935,0.44465765,2783.4,2782.9,0.42487783]
[1643718720136,0.44465765,2783.4,2782.8,0.1796]
[1643718720137,0.44465765,2783.4,2783.0,0.1796]
[1643718720334,0.44465765,2783.4,2782.7,0.1796]
[1643718720335,0.62427765,2783.4,2782.7,0.1796]
[1643718720736,21.80427765,2783.4,2782.7,0.1796]
[1643718720937,21.80427765,2783.4,2782.6,0.1796]
[1643718720938,1.43087765,2783.4,2782.6,0.1796]
[1643718721137,1.2349,2783.3,2782.6,0.1796]
[1643718721383,1.2349,2783.3,2781.9,2.6955]
[1643718721384,3.51276905,2783.2,2782.0,0.1796]
[1643718721584,0.68814816,2782.6,2782.0,0.1796]
[1643718721982,1.70554816,2782.6,2782.0,0.1796]
[1643718722384,0.32874202,2782.2,2782.0,0.1796]
[1643718722585,0.3965,2782.3,2782.0,0.1796]
[1643718722784,0.3965,2782.3,2781.8,0.8986]
[1643718722785,0.3965,2782.3,2781.9,0.1797]
[1643718723187,0.3965,2782.3,2781.9,0.1897]
[1643718723188,2.45762512,2782.2,2781.9,0.1897]
[1643718723386,2.74872863,2782.3,2781.9,0.1897]
[1643718723589,0.75905661,2782.3,2781.9,0.1897]
[1643718723986,3.05407757,2782.3,2781.9,0.1897]
[1643718724190,3.01973653,2782.3,2781.9,0.1897]
[1643718724393,0.75905661,2782.3,2781.9,0.1897]
[1643718724589,0.36255661,2782.3,2781.9,0.1897]
[1643718725934,0.17962,2782.2,2781.9,0.1897]
[1643718727838,0.17962,2782.2,2781.3,7.65252924]
[1643718727839,0.17962,2782.0,2781.3,0.01]
[1643718728039,0.17962,2782.0,2781.4,0.1797]
[1643718728040,0.68613626,2781.7,2781.4,0.1797]
[1643718728238,1.22952,2781.8,2781.4,0.1797]
[1643718728436,1.22952,2781.8,2780.8,4.04969924]
[1643718728638,0.93152,2781.8,2780.8,4.04969924]
[1643718728879,0.93152,2781.8,2781.3,0.39539332]
[1643718728880,2.07602,2781.8,2781.3,0.39539332]
[1643718729079,1.79312,2781.8,2781.3,0.39539332]
[1643718729279,2.50812924,2781.8,2781.3,0.39539332]
[1643718729684,1.79312,2781.8,2781.3,0.39539332]
[1643718729885,1.32412,2781.8,2781.3,0.39539332]
[1643718730083,1.32412,2781.8,2781.4,0.8987]
[1643718730084,1.1445,2781.8,2781.4,0.8987]
[1643718730285,3.4344,2781.9,2781.5,0.89867]
[1643718730491,0.17962,2782.6,2781.6,2.28157265]
[1643718730687,14.2412,2782.7,2781.5,0.3]
[1643718730688,14.95138025,2782.7,2781.5,0.6]
[1643718730887,14.95138025,2782.7,2781.3,1.52568124]
[1643718730888,15.13100025,2782.7,2781.3,1.52568124]
[1643718731090,16.10630025,2782.7,2781.4,1.0]
[1643718731286,16.10630025,2782.7,2781.3,2.00768124]
[1643718731486,37.28630025,2782.7,2781.5,0.89867]
[1643718731689,0.41245579,2782.3,2781.5,0.89867]
[1643718731889,0.41245579,2782.3,2781.4,1.79723]
[1643718732086,0.17962,2782.2,2781.4,1.79723]
[1643718732291,0.17962,2782.2,2781.2,2.6961]
[1643718732489,0.17962,2782.2,2781.2,1.79736]
[1643718732742,0.17962,2782.2,2781.0,3.11877243]
[1643718732743,0.42818819,2781.5,2781.0,3.11877243]
[1643718732943,0.9878,2781.5,2781.0,3.11877243]
[1643718733138,0.9878,2781.5,2781.0,3.10877243]
[1643718733339,0.9878,2781.5,2781.0,2.69632]
[1643718734040,0.9878,2781.5,2780.7,7.1895]
[1643718734245,0.3417986,2781.3,2780.9,0.36070837]
[1643718734444,0.3417986,2781.3,2780.6,1.79783]
[1643718734640,0.8877,2781.5,2780.6,1.79783]
[1643718734844,0.8877,2781.5,2780.7,0.89888]
[1643718735240,0.8877,2781.5,2780.6,1.79783]
[1643718735641,0.38451474,2781.3,2780.8,0.39221771]
[1643718735841,0.56301474,2781.3,2780.6,1.79783]
[1643718736041,0.56301474,2781.3,2780.6,0.89892]
[1643718736505,0.3751,2781.1,2780.3,1.79788]
[1643718736706,0.1785,2781.0,2780.3,1.79788]
[1643718737106,0.3198,2780.5,2780.0,0.89918]
[1643718737303,1.2883,2780.5,2780.0,0.89918]
[1643718738107,1.2883,2780.5,2780.2,0.39078988]
[1643718738307,0.9685,2780.5,2780.2,0.39078988]
[1643718738906,0.9685,2780.5,2780.0,0.89918]
[1643718739409,0.9685,2780.5,2780.1,0.6]
[1643718739609,0.9685,2780.5,2780.0,0.89918]
[1643718739812,0.40370861,2780.3,2780.0,0.89918]
[1643718740014,0.9685,2780.5,2780.1,0.3]
[1643718740241,0.18849,2780.7,2779.9,1.79817]
[1643718740442,0.18849,2780.7,2779.9,2.09817]
[1643718740641,0.1785,2780.7,2779.9,2.09817]
[1643718741442,0.41358727,2780.3,2779.9,2.09817]
[1643718741643,0.41358727,2780.3,2779.9,0.3]
[1643718741841,0.41358727,2780.3,2779.8,0.68890214]
[1643718742043,0.78586282,2780.5,2779.8,0.68890214]
[1643718742245,0.96436282,2780.5,2779.8,0.68890214]
[1643718742648,0.96436282,2780.5,2779.8,0.38890214]
[1643718743048,0.96436282,2780.5,2779.5,1.79845]
[1643718743248,22.14436282,2780.5,2779.4,0.01]
[1643718743447,22.14436282,2780.5,2779.2,2.25337769]
[1643718743648,22.14436282,2780.5,2779.2,2.24039974]
[1643718743886,22.14436282,2780.5,2779.0,2.69806]
[1643718743887,21.18,2780.3,2779.0,2.69806]
[1643718744086,0.35240154,2779.4,2779.0,0.89943]
[1643718744286,0.35240154,2779.4,2778.9,0.01]
[1643718744287,0.35240154,2779.4,2778.7,1.79897]
[1643718744487,0.83487743,2779.2,2778.4,0.18779771]
[1643718745088,1.2136,2779.4,2778.4,0.18779771]
[1643718745296,0.00999,2779.6,2778.4,2.42819745]
[1643718745488,0.00999,2779.6,2778.6,0.89952]
[1643718745786,0.1785,2779.8,2778.6,2.24039974]
[1643718745986,0.1785,2779.8,2778.4,0.18779771]
[1643718746188,0.3320103,2779.1,2778.7,0.39667483]
[1643718746386,0.3320103,2779.1,2778.4,0.18779771]
[1643718746986,0.3320103,2779.1,2778.1,2.5530356]
[1643718747188,0.3320103,2779.1,2778.2,1.0]
[1643718747388,0.3320103,2779.1,2778.2,1.3]
[1643718747636,0.5105103,2779.1,2778.2,0.3]
[1643718747839,0.5105103,2779.1,2777.5,3.23912877]
[1643718747840,0.70313652,2778.6,2777.5,3.23912877]
[1643718748046,21.6905103,2779.1,2777.6,0.01]
[1643718748238,0.1785,2778.9,2777.7,0.1878269]
[1643718748437,0.4797,2778.9,2777.6,0.35726921]
[1643718748638,1.1927,2779.2,2777.6,0.35726921]
[1643718748838,1.1927,2779.2,2777.7,2.23074284]
[1643718749041,0.69058326,2778.6,2777.5,0.89981]
[1643718749242,1.58478326,2778.6,2777.4,0.1878381]
[1643718749443,0.1785,2778.5,2777.4,0.1878381]
[1643718749640,5.2307,2778.5,2777.4,0.1878381]
[1643718749845,26.4107,2778.5,2777.4,0.1878381]
[1643718750041,0.86326674,2777.7,2777.4,0.1878381]
[1643718750242,0.86326674,2777.7,2777.1,8.35285949]
[1643718750447,0.86326674,2777.7,2777.1,7.44]
[1643718750642,1.64676674,2777.7,2777.1,7.44]
[1643718750843,1.64676674,2777.7,2776.5,8.34013]
[1643718751243,0.41355366,2777.3,2776.5,8.34013]
[1643718751684,0.86326674,2777.7,2776.5,8.34013]
[1643718751883,0.00999,2777.9,2776.5,8.34013]
[1643718752283,0.00999,2777.9,2776.5,1.41813]
[1643718752484,5.2307,2778.5,2776.9,0.01250526]
[1643718752685,0.36868871,2777.9,2777.5,0.43459284]
[1643718752883,0.00999,2778.3,2777.5,0.96556066]
[1643718753283,0.91718798,2778.4,2777.5,1.26556066]
[1643718753685,0.91718798,2778.4,2777.5,1.56556066]
[1643718753884,0.43574032,2778.0,2777.5,2.46536066]
[1643718754085,0.43574032,2778.0,2777.5,2.03076782]
[1643718754587,0.91718798,2778.4,2777.5,2.03076782]
[1643718755245,2.32215039,2778.8,2777.5,2.0178]
[1643718755246,2.50065039,2778.8,2777.5,2.0178]
[1643718755436,2.50065039,2778.8,2777.5,1.4998]
[1643718755437,0.39357418,2777.8,2777.5,1.4998]
[1643718756438,0.79817343,2778.2,2777.5,1.4998]
[1643718757039,0.79817343,2778.2,2777.5,0.6]
[1643718757240,0.79817343,2778.2,2777.0,2.2186]
[1643718757441,0.79817343,2778.2,2777.1,0.3]
[1643718757642,0.33813255,2777.3,2777.1,0.3]
[1643718757841,0.79817343,2778.2,2777.1,0.3]
[1643718758042,0.79817343,2778.2,2777.3,0.89996]
[1643718758245,0.79817343,2778.2,2777.4,0.6]
[1643718759192,0.33710356,2777.8,2777.4,0.6]
[1643718759597,0.79817343,2778.2,2777.4,0.6]
[1643718759797,0.79659493,2778.2,2777.4,0.6]
[1643718759997,2.33082773,2778.1,2777.4,0.6]
[1643718760197,0.79659493,2778.2,2777.4,0.6]
[1643718760198,0.79659493,2778.2,2777.5,0.90002]
[1643718760498,0.38260516,2777.9,2777.5,1.58823347]
[1643718760699,0.38260516,2777.9,2777.5,1.50002]
[1643718761699,0.79659493,2778.2,2777.5,1.94305546]
[1643718762097,0.79659493,2778.2,2777.5,1.50002]
[1643718763558,0.40470528,2777.9,2777.5,1.50002]
[1643718763752,0.40470528,2777.9,2777.5,1.4984473]
[1643718764752,0.79659493,2778.2,2777.5,1.4984473]
[1643718764952,0.75618897,2777.7,2777.5,0.90002]
[1643718765154,0.75618897,2777.7,2776.8,1.81014]
[1643718765556,0.75618897,2777.7,2776.8,1.80014]
[1643718765853,0.75618897,2777.7,2776.5,2.1452]
[1643718765854,0.4170481,2777.0,2776.5,0.9002]
[1643718766060,1.97548897,2777.7,2776.5,0.9002]
[1643718766253,1.97548897,2777.7,2776.8,0.90019]
[1643718766890,1.97548897,2777.7,2776.5,0.9002]
[1643718767389,2.35775839,2777.6,2776.5,0.9002]
[1643718767591,0.80513356,2777.2,2776.5,0.9002]
[1643718767993,0.4197633,2777.0,2776.5,0.9002]
[1643718769092,1.2193,2777.7,2776.6,0.3]
[1643718770343,0.34408233,2777.2,2776.6,0.3]
[1643718770643,0.90034464,2777.4,2776.5,5.12929769]
[1643718770843,0.90034464,2777.4,2776.6,1.3]
[1643718771645,0.39723973,2776.8,2776.3,0.68302627]
[1643718771846,0.39723973,2776.8,2776.3,0.31]
[1643718772048,0.39723973,2776.8,2775.9,1.1260167]
[1643718772247,0.92624593,2776.3,2775.9,1.1260167]
[1643718773047,0.31580422,2776.2,2775.9,1.1260167]
[1643718773545,0.92624593,2776.3,2775.9,1.1260167]
[1643718774793,0.00999,2776.9,2776.0,2.24039974]
[1643718774994,0.00999,2776.9,2776.0,3.15272573]
[1643718775192,4.9903,2777.7,2776.0,3.15272573]
[1643718775193,4.9903,2777.7,2776.1,2.23243]
[1643718775391,4.9903,2777.7,2776.2,2.24039974]
[1643718775592,4.97032573,2777.7,2776.3,0.432]
[1643718775793,4.97032573,2777.7,2776.3,1.432]
[1643718775993,0.39000727,2777.0,2776.6,0.38119902]
[1643718776194,0.68760606,2777.4,2776.5,0.432]